fUSD/lending_fUSD_20250110
["ID","MTS","AMOUNT","RATE_DAILY","PERIOD"]
[348451234,1736533832665,-726.66,9.278e-05,2]
[348451235,1736533832674,-500.0,9.278e-05,2]
[348451237,1736533832684,-500.0,9.278e-05,2]
[348451238,1736533832694,-500.0,9.278e-05,2]
[348451239,1736533832704,-500.0,9.278e-05,2]
[348451240,1736533832713,-500.0,9.278e-05,2]
[348451241,1736533832723,-500.0,9.278e-05,2]
[348451243,1736533832734,-500.0,9.278e-05,2]
[348451245,1736533832743,-598.57,9.278e-05,2]
[348451247,1736533832753,-732.15,9.279e-05,2]
[348451249,1736533832772,-500.0,9.279e-05,2]
[348451251,1736533832783,-654.3,9.279e-05,2]
[348451253,1736533832793,-500.0,9.279e-05,2]
[348451255,1736533832803,-1256.27,9.279e-05,2]
[348451257,1736533832812,-500.0,9.279e-05,2]
[348451259,1736533832822,-500.0,9.279e-05,2]
[348451261,1736533832832,-2746.7,9.279e-05,2]
[348451263,1736533832842,-752.83,9.279e-05,2]
[348451265,1736533832851,-500.0,9.279e-05,2]
[348451267,1736533832861,-505.23,9.279e-05,2]
[348451269,1736533832871,-750.43,9.283e-05,2]
[348451271,1736533832881,-500.0,9.283e-05,2]
[348451273,1736533832891,-500.0,9.283e-05,2]
[348451275,1736533832902,-1000.0,9.283e-05,2]
[348451277,1736533832912,-572.96,9.283e-05,2]
[348451279,1736533832922,-500.0,9.283e-05,2]
[348451281,1736533832932,-1400.9,9.283e-05,2]
[348451283,1736533832942,-500.0,9.509e-05,2]
[348451285,1736533832952,-500.0,9.552e-05,2]
[348451287,1736533832962,-500.5195495,9.552e-05,2]
[348451289,1736533832973,-500.0,9.552e-05,2]
[348451291,1736533832983,-500.73491534,9.552e-05,2]
[348451293,1736533832993,-504.66630564,9.552e-05,2]
[348451295,1736533833003,-500.0,9.552e-05,2]
[348451297,1736533833013,-500.0,9.552e-05,2]
[348451299,1736533833026,-500.0,9.552e-05,2]
[348451301,1736533833036,-500.0,9.552e-05,2]
[348451303,1736533833046,-500.0,9.552e-05,2]
[348451305,1736533833058,-500.0,9.552e-05,2]
[348451307,1736533833070,-500.0,9.552e-05,2]
[348451309,1736533833081,-500.0,9.552e-05,2]
[348451311,1736533833091,-500.0,9.552e-05,2]
[348451313,1736533833102,-500.0,9.552e-05,2]
[348451315,1736533833112,-500.0,9.552e-05,2]
[348451317,1736533833122,-500.0,9.552e-05,2]
[348451319,1736533833132,-501.7488858,9.552e-05,2]
[348451321,1736533833148,-625.28467643,9.552e-05,2]
[348451323,1736533833165,-500.0,9.552e-05,2]
[348451325,1736533833175,-500.0,9.552e-05,2]
[348451327,1736533833185,-500.0,9.552e-05,2]
[348451329,1736533833195,-500.0,9.552e-05,2]
[348451331,1736533833205,-500.0,9.552e-05,2]
[348451333,1736533833216,-500.0,9.552e-05,2]
[348451335,1736533833226,-525.35834672,9.552e-05,2]
[348451337,1736533833236,-500.0,9.552e-05,2]
[348451339,1736533833246,-500.0,9.552e-05,2]
[348451341,1736533833255,-1270.16,9.552e-05,2]
[348451343,1736533833265,-500.0,9.552e-05,2]
[348451345,1736533833279,-612.53,9.552e-05,2]
[348451347,1736533833288,-1776.52,9.552e-05,2]
[348451349,1736533833303,-1838.22,9.552e-05,2]
[348451351,1736533833313,-500.0,9.552e-05,2]
[348451353,1736533833323,-760.22,9.552e-05,2]
[348451355,1736533833333,-1504.35,9.552e-05,2]
[348451358,1736533833344,-1213.34,9.552e-05,2]
[348451360,1736533833354,-1034.34,9.552e-05,2]
[348451362,1736533833364,-686.68,9.552e-05,2]
[348451363,1736533833375,-500.0,9.552e-05,2]
[348451364,1736533833385,-500.0,9.552e-05,2]
[348451365,1736533833395,-774.31,9.552e-05,2]
[348451366,1736533833405,-1055.83,9.552e-05,2]
[348451367,1736533833416,-500.0,9.552e-05,2]
[348451368,1736533833427,-726.66,9.552e-05,2]
[348451369,1736533833437,-681.25,9.552e-05,2]
[348451370,1736533833447,-500.0,9.552e-05,2]
[348451371,1736533833457,-639.87,9.552e-05,2]
[348451372,1736533833467,-500.0,9.552e-05,2]
[348451373,1736533833477,-987.53,9.552e-05,2]
[348451374,1736533833488,-500.0,9.552e-05,2]
[348451375,1736533833498,-708.72,9.552e-05,2]
[348451376,1736533833508,-500.0,9.552e-05,2]
[348451377,1736533833520,-500.0,9.552e-05,2]
[348451378,1736533833530,-500.0,9.552e-05,2]
[348451379,1736533833542,-1898.81,9.552e-05,2]
[348451380,1736533833552,-500.0,9.552e-05,2]
[348451381,1736533833562,-830.71,9.552e-05,2]
[348451382,1736533833572,-598.57,9.552e-05,2]
[348451383,1736533833581,-732.15,9.553e-05,2]
[348451384,1736533833591,-500.0,9.553e-05,2]
[348451385,1736533833601,-654.3,9.553e-05,2]
[348451386,1736533833611,-500.0,9.553e-05,2]
[348451387,1736533833621,-1256.27,9.553e-05,2]
[348451388,1736533833631,-500.0,9.553e-05,2]
[348451389,1736533833641,-500.0,9.553e-05,2]
[348451390,1736533833652,-2746.7,9.553e-05,2]
[348451391,1736533833665,-752.83,9.553e-05,2]
[348451392,1736533833676,-500.0,9.553e-05,2]
[348451393,1736533833686,-505.23,9.553e-05,2]
[348451394,1736533833698,-750.43,9.557e-05,2]
[348451395,1736533833708,-500.0,9.557e-05,2]
[348451396,1736533833718,-500.0,9.557e-05,2]
[348451397,1736533833729,-1000.0,9.557e-05,2]
[348451398,1736533833740,-572.96,9.557e-05,2]
[348451399,1736533833750,-500.0,9.557e-05,2]
[348451400,1736533833760,-1400.9,9.557e-05,2]
[348451401,1736533833770,-11868.4781118,9.605e-05,2]
[348451402,1736533833785,-95526.5218882,9.605e-05,2]
[348451403,1736533833796,-5000.0,9.626e-05,2]
[348451404,1736533833806,-952.1,9.7e-05,2]
[348451405,1736533833817,-500.0,9.7e-05,2]
[348451406,1736533833828,-1098.85,9.7e-05,2]
[348451407,1736533833838,-1497.69,9.7e-05,2]
[348451408,1736533833848,-859.29,9.7e-05,2]
[348451409,1736533833859,-500.0,9.7e-05,2]
[348451410,1736533833869,-525.33,9.7e-05,2]
[348451411,1736533833879,-500.0,9.7e-05,2]
[348451412,1736533833889,-1549.39,9.7e-05,2]
[348451413,1736533833899,-534.87,9.7e-05,2]
[348451414,1736533833909,-500.0,9.7e-05,2]
[348451415,1736533833920,-500.0,9.7e-05,2]
[348451416,1736533833930,-500.0,9.7e-05,2]
[348451417,1736533833940,-500.0,9.7e-05,2]
[348451418,1736533833950,-500.0,9.7e-05,2]
[348451419,1736533833961,-500.0,9.7e-05,2]
[348451420,1736533833979,-500.0,9.7e-05,2]
[348451421,1736533833995,-500.0,9.7e-05,2]
[348451422,1736533834006,-726.64,9.701e-05,2]
[348451423,1736533834017,-500.0,9.701e-05,2]
[348451424,1736533834029,-573.4,9.701e-05,2]
[348451425,1736533834040,-500.0,9.701e-05,2]
[348451426,1736533834051,-500.0,9.701e-05,2]
[348451427,1736533834062,-500.0,9.701e-05,2]
[348451428,1736533834072,-636.89,9.701e-05,2]
[348451429,1736533834084,-19.03031978,9.701e-05,2]
[348451430,1736533834097,-480.96968022,9.701e-05,2]
[348451431,1736533834107,-500.0,9.701e-05,2]
[348451432,1736533834118,-782.08,9.701e-05,2]
[348451433,1736533834128,-247.93588086,9.701e-05,2]
[348451434,1736533834139,-500.0,9.701e-05,2]
[348451435,1736533834150,-2162.29,9.701e-05,2]
[348451436,1736533834160,-500.0,9.701e-05,2]
[348451437,1736533834171,-665.58,9.701e-05,2]
[348451438,1736533834181,-1085.29,9.701e-05,2]
[348451439,1736533834192,-500.0,9.701e-05,2]
[348451440,1736533834202,-2973.03,9.701e-05,2]
[348451441,1736533834213,-500.0,9.701e-05,2]
[348451442,1736533834223,-500.0,9.701e-05,2]
[348451443,1736533834234,-867.67,9.701e-05,2]
[348451444,1736533834245,-593.95,9.701e-05,2]
[348451445,1736533834256,-824.0,9.701e-05,2]
[348451446,1736533834266,-1129.84,9.701e-05,2]
[348451447,1736533834279,-936.89,9.701e-05,2]
[348451448,1736533834291,-500.0,9.701e-05,2]
[348451449,1736533834302,-1656.28,9.701e-05,2]
[348451450,1736533834314,-714.0,9.701e-05,2]
[348451451,1736533834326,-509.75,9.701e-05,2]
[348451452,1736533834338,-500.0,9.701e-05,2]
[348451453,1736533834348,-500.0,9.701e-05,2]
[348451454,1736533834359,-943.51,9.701e-05,2]
[348451455,1736533834379,-467.076034,9.701e-05,2]
[348451456,1736533834398,-158.091979,9.701e-05,2]
[348451457,1736533834410,-1256.8,9.701e-05,2]
[348451458,1736533834423,-156.728286,9.701e-05,2]
[348451459,1736533834433,-500.0,9.701e-05,2]
[348451460,1736533834444,-255.0,9.724e-05,2]
[348451461,1736533834456,-500.56870927,9.725e-05,2]
[348451462,1736533834467,-500.0,9.725e-05,2]
[348451463,1736533834478,-500.0,9.725e-05,2]
[348451464,1736533834493,-500.0,9.725e-05,2]
[348451465,1736533834505,-500.0,9.725e-05,2]
[348451466,1736533834515,-500.0,9.725e-05,2]
[348451467,1736533834528,-500.0,9.725e-05,2]
[348451468,1736533834540,-500.0,9.725e-05,2]
[348451469,1736533834550,-500.0,9.725e-05,2]
[348451470,1736533834561,-500.0,9.725e-05,2]
[348451471,1736533834573,-500.0,9.725e-05,2]
[348451472,1736533834584,-500.0,9.725e-05,2]
[348451473,1736533834595,-500.0,9.725e-05,2]
[348451474,1736533834607,-500.0,9.725e-05,2]
[348451475,1736533834618,-500.0,9.725e-05,2]
[348451476,1736533834628,-500.0,9.725e-05,2]
[348451477,1736533834638,-500.0,9.725e-05,2]
[348451478,1736533834649,-500.0,9.725e-05,2]
[348451479,1736533834660,-500.0,9.725e-05,2]
[348451480,1736533834670,-500.0,9.725e-05,2]
[348451481,1736533834680,-500.0,9.725e-05,2]
[348451482,1736533834690,-500.0,9.725e-05,2]
[348451483,1736533834701,-500.0,9.725e-05,2]
[348451484,1736533834712,-500.0,9.725e-05,2]
[348451485,1736533834723,-500.0,9.725e-05,2]
[348451486,1736533834735,-500.0,9.725e-05,2]
[348451487,1736533834745,-500.0,9.725e-05,2]
[348451488,1736533834756,-500.0,9.725e-05,2]
[348451489,1736533834766,-500.0,9.725e-05,2]
[348451490,1736533834776,-500.0,9.725e-05,2]
[348451491,1736533834786,-500.0,9.725e-05,2]
[348451492,1736533834797,-500.0,9.725e-05,2]
[348451493,1736533834807,-500.0,9.725e-05,2]
[348451494,1736533834818,-500.0,9.725e-05,2]
[348451495,1736533834828,-500.0,9.725e-05,2]
[348451496,1736533834839,-500.0,9.725e-05,2]
[348451497,1736533834849,-500.0,9.725e-05,2]
[348451498,1736533834860,-500.0,9.725e-05,2]
[348451499,1736533834871,-500.0,9.725e-05,2]
[348451500,1736533834881,-500.0,9.725e-05,2]
[348451501,1736533834891,-500.0,9.725e-05,2]
[348451502,1736533834902,-500.0,9.725e-05,2]
[348451503,1736533834913,-500.0,9.725e-05,2]
[348451504,1736533834923,-523.25,9.725e-05,2]
[348451505,1736533834934,-500.0,9.725e-05,2]
[348451506,1736533834944,-500.0,9.725e-05,2]
[348451507,1736533834953,-500.0,9.725e-05,2]
[348451508,1736533834964,-500.0,9.725e-05,2]
[348451509,1736533834974,-500.0,9.725e-05,2]
[348451510,1736533834985,-500.0,9.725e-05,2]
[348451511,1736533834999,-500.0,9.725e-05,2]
[348451512,1736533835010,-500.0,9.725e-05,2]
[348451513,1736533835020,-500.0,9.725e-05,2]
[348451514,1736533835031,-500.0,9.725e-05,2]
[348451515,1736533835042,-500.0,9.725e-05,2]
[348451516,1736533835052,-500.0,9.725e-05,2]
[348451517,1736533835063,-500.0,9.725e-05,2]
[348451518,1736533835074,-500.0,9.725e-05,2]
[348451519,1736533835084,-500.0,9.725e-05,2]
[348451520,1736533835095,-500.0,9.725e-05,2]
[348451521,1736533835106,-500.0,9.725e-05,2]
[348451522,1736533835116,-500.0,9.725e-05,2]
[348451523,1736533835126,-500.0,9.725e-05,2]
[348451524,1736533835137,-500.0,9.725e-05,2]
[348451525,1736533835146,-500.0,9.725e-05,2]
[348451526,1736533835157,-500.0,9.725e-05,2]
[348451527,1736533835167,-500.0,9.725e-05,2]
[348451528,1736533835179,-500.0,9.725e-05,2]
[348451529,1736533835189,-500.0,9.725e-05,2]
[348451530,1736533835199,-500.0,9.725e-05,2]
[348451531,1736533835210,-500.0,9.725e-05,2]
[348451532,1736533835220,-500.0,9.725e-05,2]
[348451533,1736533835231,-500.0,9.725e-05,2]
[348451534,1736533835243,-500.0,9.725e-05,2]
[348451535,1736533835253,-500.0,9.725e-05,2]
[348451536,1736533835262,-500.0,9.725e-05,2]
[348451537,1736533835274,-500.0,9.725e-05,2]
[348451538,1736533835284,-500.0,9.725e-05,2]
[348451539,1736533835294,-500.0,9.725e-05,2]
[348451540,1736533835304,-500.0,9.725e-05,2]
[348451541,1736533835315,-500.0,9.725e-05,2]
[348451542,1736533835325,-500.0,9.725e-05,2]
[348451543,1736533835339,-500.0,9.725e-05,2]
[348451544,1736533835350,-500.0,9.725e-05,2]
[348451545,1736533835361,-474.0525492,9.725e-05,2]
[348451546,1736533835371,-500.0,9.725e-05,2]
[348451547,1736533835382,-500.0,9.725e-05,2]
[348451548,1736533835392,-500.0,9.725e-05,2]
[348451549,1736533835403,-500.0,9.725e-05,2]
[348451550,1736533835413,-500.0,9.725e-05,2]
[348451551,1736533835423,-500.0,9.725e-05,2]
[348451552,1736533835433,-500.0,9.725e-05,2]
[348451553,1736533835444,-500.0,9.725e-05,2]
[348451554,1736533835454,-500.0,9.725e-05,2]
[348451555,1736533835464,-500.0,9.725e-05,2]
[348451556,1736533835474,-500.0,9.725e-05,2]
[348451557,1736533835484,-500.0,9.725e-05,2]
[348451558,1736533835494,-500.0,9.725e-05,2]
[348451559,1736533835505,-500.0,9.725e-05,2]
[348451560,1736533835517,-500.0,9.725e-05,2]
[348451561,1736533835527,-500.0,9.725e-05,2]
[348451562,1736533835539,-500.0,9.725e-05,2]
[348451563,1736533835550,-845.55,9.725e-05,2]
[348451564,1736533835561,-500.0,9.725e-05,2]
[348451565,1736533835572,-500.0,9.725e-05,2]
[348451566,1736533835583,-500.0,9.725e-05,2]
[348451567,1736533835593,-500.0,9.725e-05,2]
[348451568,1736533835603,-500.0,9.725e-05,2]
[348451569,1736533835614,-500.0,9.725e-05,2]
[348451570,1736533835625,-500.0,9.725e-05,2]
[348451571,1736533835635,-500.0,9.725e-05,2]
[348451572,1736533835646,-500.0,9.725e-05,2]
[348451573,1736533835658,-500.0,9.725e-05,2]
[348451574,1736533835671,-500.0,9.725e-05,2]
[348451575,1736533835681,-500.0,9.725e-05,2]
[348451576,1736533835692,-533.92373843,9.725e-05,2]
[348451577,1736533835703,-500.0,9.725e-05,2]
[348451578,1736533835713,-500.0,9.725e-05,2]
[348451579,1736533835723,-500.0,9.725e-05,2]
[348451580,1736533835735,-500.0,9.725e-05,2]
[348451581,1736533835745,-500.0,9.725e-05,2]
[348451582,1736533835755,-500.0,9.725e-05,2]
[348451583,1736533835766,-500.0,9.725e-05,2]
[348451584,1736533835778,-500.0,9.725e-05,2]
[348451585,1736533835788,-500.0,9.725e-05,2]
[348451586,1736533835798,-500.0,9.725e-05,2]
[348451587,1736533835808,-1071.0,9.725e-05,2]
[348451588,1736533835818,-500.0,9.725e-05,2]
[348451589,1736533835829,-500.0,9.725e-05,2]
[348451590,1736533835839,-500.0,9.725e-05,2]
[348451591,1736533835849,-500.0,9.725e-05,2]
[348451592,1736533835860,-500.0,9.725e-05,2]
[348451593,1736533835870,-500.0,9.725e-05,2]
[348451594,1736533835880,-500.0,9.725e-05,2]
[348451595,1736533835890,-500.0,9.725e-05,2]
[348451596,1736533835900,-500.0,9.725e-05,2]
[348451597,1736533835910,-1778.38,9.725e-05,2]
[348451598,1736533835921,-500.0,9.725e-05,2]
[348451599,1736533835930,-201.34509084,9.725e-05,2]
[348451600,1736533835941,-500.0,9.725e-05,2]
[348451601,1736533835950,-500.0,9.725e-05,2]
[348451602,1736533835960,-500.0,9.725e-05,2]
[348451603,1736533835970,-500.0,9.725e-05,2]
[348451604,1736533835980,-500.0,9.725e-05,2]
[348451605,1736533835990,-500.0,9.725e-05,2]
[348451606,1736533836001,-500.0,9.725e-05,2]
[348451607,1736533836010,-500.0,9.725e-05,2]
[348451608,1736533836021,-500.0,9.725e-05,2]
[348451609,1736533836035,-1645.69,9.725e-05,2]
[348451610,1736533836044,-1000.0,9.726e-05,2]
[348451611,1736533836054,-72717.47255219,9.726e-05,2]
[348451612,1736533836070,-11050.0,9.726e-05,2]
[348451613,1736533836099,-433.62348908,9.726e-05,2]
[348451614,1736533836110,-3723.68140962,9.726e-05,2]
[348451615,1736533836122,-2042.9495505,9.726e-05,2]
[348451616,1736533836133,-520.41,9.726e-05,2]
[348451617,1736533836147,-11692.98979861,9.726e-05,2]
[348451618,1736533836158,-48629.5436,9.726e-05,2]
[348451619,1736533836170,-500.0,9.826e-05,2]
[348451620,1736533836183,-500.0,9.826e-05,2]
[348451621,1736533836193,-500.0,9.826e-05,2]
[348451622,1736533836202,-500.0,9.826e-05,2]
[348451623,1736533836212,-500.0,9.826e-05,2]
[348451624,1736533836221,-500.0,9.826e-05,2]
[348451625,1736533836230,-500.0,9.826e-05,2]
[348451626,1736533836239,-500.0,9.826e-05,2]
[348451627,1736533836249,-500.0,9.826e-05,2]
[348451628,1736533836258,-500.0,9.826e-05,2]
[348451629,1736533836267,-500.0,9.826e-05,2]
[348451630,1736533836277,-500.0,9.826e-05,2]
[348451631,1736533836287,-500.0,9.826e-05,2]
[348451632,1736533836296,-1270.16,9.826e-05,2]
[348451633,1736533836306,-500.0,9.826e-05,2]
[348451634,1736533836317,-612.53,9.826e-05,2]
[348451635,1736533836326,-1776.52,9.826e-05,2]
[348451636,1736533836336,-1838.22,9.826e-05,2]
[348451637,1736533836346,-500.0,9.826e-05,2]
[348451638,1736533836357,-760.22,9.826e-05,2]
[348451639,1736533836366,-1504.35,9.826e-05,2]
[348451640,1736533836376,-1213.34,9.826e-05,2]
[348451641,1736533836386,-1034.34,9.826e-05,2]
[348451642,1736533836396,-686.68,9.826e-05,2]
[348451643,1736533836407,-500.0,9.826e-05,2]
[348451644,1736533836417,-500.0,9.826e-05,2]
[348451645,1736533836427,-774.31,9.826e-05,2]
[348451646,1736533836439,-1055.83,9.826e-05,2]
[348451647,1736533836449,-500.0,9.826e-05,2]
[348451648,1736533836459,-726.66,9.826e-05,2]
[348451649,1736533836469,-681.25,9.826e-05,2]
[348451650,1736533836480,-500.0,9.826e-05,2]
[348451651,1736533836490,-639.87,9.826e-05,2]
[348451652,1736533836500,-500.0,9.826e-05,2]
[348451653,1736533836510,-987.53,9.826e-05,2]
[348451654,1736533836520,-500.0,9.826e-05,2]
[348451655,1736533836531,-708.72,9.826e-05,2]
[348451656,1736533836542,-500.0,9.826e-05,2]
[348451657,1736533836552,-500.0,9.826e-05,2]
[348451658,1736533836562,-500.0,9.826e-05,2]
[348451659,1736533836572,-1898.81,9.826e-05,2]
[348451660,1736533836582,-500.0,9.826e-05,2]
[348451661,1736533836593,-830.71,9.826e-05,2]
[348451662,1736533836603,-598.57,9.826e-05,2]
[348451663,1736533836613,-732.15,9.827e-05,2]
[348451664,1736533836624,-500.0,9.827e-05,2]
[348451665,1736533836634,-654.3,9.827e-05,2]
[348451666,1736533836645,-500.0,9.827e-05,2]
[348451667,1736533836657,-1256.27,9.827e-05,2]
[348451668,1736533836669,-500.0,9.827e-05,2]
[348451669,1736533836679,-500.0,9.827e-05,2]
[348451670,1736533836690,-2746.7,9.827e-05,2]
[348451671,1736533836702,-752.83,9.827e-05,2]
[348451672,1736533836713,-500.0,9.827e-05,2]
[348451673,1736533836724,-505.23,9.827e-05,2]
[348451674,1736533836735,-750.43,9.831e-05,2]
[348451675,1736533836744,-500.0,9.831e-05,2]
[348451676,1736533836754,-500.0,9.831e-05,2]
[348451677,1736533836764,-1000.0,9.831e-05,2]
[348451678,1736533836777,-572.96,9.831e-05,2]
[348451679,1736533836787,-500.0,9.831e-05,2]
[348451680,1736533836797,-1400.9,9.831e-05,2]
[348451681,1736533836808,-152.08244797,9.973e-05,2]
[348451682,1736533836818,-500.0,9.973e-05,2]
[348451683,1736533836828,-952.1,9.974e-05,2]
[348451684,1736533836838,-580.45,9.974e-05,2]
[348451685,1736533836848,-1098.85,9.974e-05,2]
[348451686,1736533836858,-1497.69,9.974e-05,2]
[348451687,1736533836869,-859.29,9.974e-05,2]
[348451688,1736533836879,-525.33,9.974e-05,2]
[348451689,1736533836890,-1549.39,9.974e-05,2]
[348451690,1736533836900,-581.85,9.974e-05,2]
[348451691,1736533836911,-500.0,9.974e-05,2]
[348451692,1736533836921,-500.0,9.974e-05,2]
[348451693,1736533836931,-500.0,9.974e-05,2]
[348451694,1736533836942,-500.0,9.974e-05,2]
[348451695,1736533836952,-500.0,9.974e-05,2]
[348451696,1736533836963,-500.0,9.974e-05,2]
[348451697,1736533836973,-726.64,9.975e-05,2]
[348451698,1736533836985,-500.0,9.975e-05,2]
[348451699,1736533837238,-573.4,9.975e-05,2]
[348451700,1736533837251,-500.0,9.975e-05,2]
[348451701,1736533837261,-500.0,9.975e-05,2]
[348451702,1736533837275,-636.89,9.975e-05,2]
[348451703,1736533837285,-434.33865585,9.975e-05,2]
[348451704,1736533837296,-500.0,9.975e-05,2]
[348451705,1736533837306,-782.08,9.975e-05,2]
[348451706,1736533837316,-500.0,9.975e-05,2]
[348451707,1736533837326,-2162.29,9.975e-05,2]
[348451708,1736533837336,-500.0,9.975e-05,2]
[348451709,1736533837347,-665.58,9.975e-05,2]
[348451710,1736533837357,-1085.29,9.975e-05,2]
[348451711,1736533837366,-500.0,9.975e-05,2]
[348451712,1736533837376,-2973.03,9.975e-05,2]
[348451713,1736533837386,-500.0,9.975e-05,2]
[348451714,1736533837396,-500.0,9.975e-05,2]
[348451715,1736533837406,-867.67,9.975e-05,2]
[348451716,1736533837417,-593.95,9.975e-05,2]
[348451717,1736533837428,-824.0,9.975e-05,2]
[348451718,1736533837438,-1129.84,9.975e-05,2]
[348451719,1736533837448,-936.89,9.975e-05,2]
[348451720,1736533837457,-500.0,9.975e-05,2]
[348451721,1736533837467,-1656.28,9.975e-05,2]
[348451722,1736533837477,-714.0,9.975e-05,2]
[348451723,1736533837492,-509.75,9.975e-05,2]
[348451724,1736533837502,-500.0,9.975e-05,2]
[348451725,1736533837512,-500.0,9.975e-05,2]
[348451726,1736533837526,-943.51,9.975e-05,2]
[348451727,1736533837538,-467.076034,9.975e-05,2]
[348451728,1736533837547,-1256.8,9.975e-05,2]
[348451729,1736533837558,-500.0,9.975e-05,2]
[348451730,1736533837568,-33643.14577839,9.988e-05,2]
[348451731,1736533837577,-558.44142,9.998e-05,2]
[348451732,1736533837587,-162.928753,9.998e-05,2]
[348451733,1736533837597,-500.0,9.999e-05,2]
[348451734,1736533837608,-500.0,9.999e-05,2]
[348451735,1736533837619,-500.0,9.999e-05,2]
[348451736,1736533837631,-500.0,9.999e-05,2]
[348451737,1736533837641,-500.0,9.999e-05,2]
[348451738,1736533837653,-500.0,9.999e-05,2]
[348451739,1736533837666,-500.0,9.999e-05,2]
[348451740,1736533837676,-500.0,9.999e-05,2]
[348451741,1736533837686,-500.0,9.999e-05,2]
[348451743,1736533837698,-500.0,9.999e-05,2]
[348451744,1736533837708,-500.0,9.999e-05,2]
[348451746,1736533837718,-500.0,9.999e-05,2]
[348451748,1736533837729,-500.0,9.999e-05,2]
[348451750,1736533837740,-500.0,9.999e-05,2]
[348451751,1736533837750,-500.0,9.999e-05,2]
[348451752,1736533837759,-500.0,9.999e-05,2]
[348451753,1736533837770,-500.0,9.999e-05,2]
[348451754,1736533837786,-500.0,9.999e-05,2]
[348451755,1736533837796,-500.0,9.999e-05,2]
[348451756,1736533837807,-510.08,9.999e-05,2]
[348451759,1736533837818,-500.0,9.999e-05,2]
[348451761,1736533837828,-500.0,9.999e-05,2]
[348451762,1736533837838,-500.0,9.999e-05,2]
[348451763,1736533837849,-500.0,9.999e-05,2]
[348451764,1736533837859,-500.0,9.999e-05,2]
[348451765,1736533837869,-500.0,9.999e-05,2]
[348451766,1736533837879,-500.0,9.999e-05,2]
[348451767,1736533837890,-500.0,9.999e-05,2]
[348451768,1736533837901,-500.0,9.999e-05,2]
[348451769,1736533837911,-500.0,9.999e-05,2]
[348451770,1736533837921,-500.0,9.999e-05,2]
[348451771,1736533837932,-500.0,9.999e-05,2]
[348451772,1736533837942,-504.03,9.999e-05,2]
[348451773,1736533837953,-500.0,9.999e-05,2]
[348451774,1736533837965,-500.0,9.999e-05,2]
[348451775,1736533837975,-500.0,9.999e-05,2]
[348451776,1736533837986,-500.0,9.999e-05,2]
[348451777,1736533837996,-500.0,9.999e-05,2]
[348451778,1736533838006,-500.0,9.999e-05,2]
[348451779,1736533838016,-500.0,9.999e-05,2]
[348451780,1736533838030,-500.0,9.999e-05,2]
[348451781,1736533838040,-581.02,9.999e-05,2]
[348451782,1736533838051,-500.0,9.999e-05,2]
[348451783,1736533838061,-500.0,9.999e-05,2]
[348451784,1736533838070,-500.0,9.999e-05,2]
[348451785,1736533838080,-500.0,9.999e-05,2]
[348451786,1736533838091,-500.0,9.999e-05,2]
[348451787,1736533838101,-500.0,9.999e-05,2]
[348451788,1736533838112,-500.0,9.999e-05,2]
[348451789,1736533838121,-500.0,9.999e-05,2]
[348451790,1736533838132,-500.0,9.999e-05,2]
[348451791,1736533838142,-500.0,9.999e-05,2]
[348451792,1736533838152,-500.0,9.999e-05,2]
[348451793,1736533838162,-500.0,9.999e-05,2]
[348451794,1736533838172,-500.0,9.999e-05,2]
[348451795,1736533838183,-500.0,9.999e-05,2]
[348451796,1736533838193,-500.0,9.999e-05,2]
[348451797,1736533838204,-500.0,9.999e-05,2]
[348451798,1736533838215,-505.59846249,9.999e-05,2]
[348451799,1736533838225,-500.0,9.999e-05,2]
[348451800,1736533838236,-500.0,9.999e-05,2]
[348451801,1736533838246,-500.0,9.999e-05,2]
[348451802,1736533838256,-500.0,9.999e-05,2]